fUST/lending_fUST_20240705
["ID","MTS","AMOUNT","RATE_DAILY","PERIOD"]
[331168313,1720115457160,-500.0,0.00015342,2]
[331168314,1720115457169,-577.1689536,0.00015342,2]
[331168315,1720115457178,-574.78,0.00015342,2]
[331168316,1720115457188,-151.0,0.00015342,2]
[331168317,1720115457196,-500.0,0.00015342,2]
[331168318,1720115457205,-500.0,0.00015342,2]
[331168319,1720115457214,-949.4,0.00015342,2]
[331168320,1720115457224,-500.0,0.00015342,2]
[331168321,1720115457233,-500.0,0.00015342,2]
[331168322,1720115457242,-500.0,0.00015342,2]
[331168323,1720115457251,-521.58,0.00015342,2]
[331168324,1720115457259,-2365.89,0.00015342,2]
[331168325,1720115457269,-500.0,0.00015342,2]
[331168326,1720115457278,-2946.08,0.00015342,2]
[331168327,1720115457286,-500.0,0.00015342,2]
[331168328,1720115457296,-922.68,0.00015342,2]
[331168329,1720115457304,-500.0,0.00015342,2]
[331168330,1720115457313,-1517.94,0.00015342,2]
[331168331,1720115457322,-500.0,0.00015342,2]
[331168332,1720115457331,-1071.73,0.00015342,2]
[331168333,1720115457339,-1086.13,0.00015342,2]
[331168334,1720115457348,-5564.47,0.00015342,2]
[331168335,1720115457357,-500.0,0.00015342,2]
[331168336,1720115457366,-500.0,0.00015342,2]
[331168337,1720115457377,-783.12,0.00015342,2]
[331168338,1720115457386,-500.0,0.00015342,2]
[331168339,1720115457395,-2740.18,0.00015342,2]
[331168340,1720115457404,-500.0,0.00015342,2]
[331168341,1720115457413,-500.0,0.00015342,2]
[331168342,1720115457422,-19199.87,0.00015342,2]
[331168343,1720115457431,-1927.95,0.00015342,2]
[331168344,1720115457439,-1110.95,0.00015342,2]
[331168345,1720115457448,-6523.9,0.00015342,2]
[331168346,1720115457458,-1271.23,0.00015342,2]
[331168347,1720115457467,-3416.58,0.00015342,2]
[331168348,1720115457475,-500.0,0.00015342,2]
[331168349,1720115457484,-5419.87,0.00015342,2]
[331168350,1720115457493,-204.04744133,0.00015342,2]
[331168351,1720115457502,-500.0,0.00015342,2]
[331168352,1720115457512,-1689.39,0.00015342,2]
[331168353,1720115457521,-7998.46,0.00015342,2]
[331168354,1720115457530,-4816.04,0.00015342,2]
[331168355,1720115457539,-153.0,0.00015342,2]
[331168356,1720115457548,-153.0,0.00015342,2]
[331168357,1720115457556,-153.0,0.00015342,2]
[331168358,1720115457566,-620.00000005,0.00015448,2]
[331168359,1720115457575,-567.08923017,0.000155,2]
[331168360,1720115457584,-703.96,0.00015616,2]
[331168361,1720115457593,-593.15,0.00015616,2]
[331168362,1720115457603,-1001.28,0.00015616,2]
[331168363,1720115457612,-856.31,0.00015616,2]
[331168364,1720115457621,-500.0,0.00015616,2]
[331168365,1720115457630,-546.25,0.00015616,2]
[331168366,1720115457639,-731.06,0.00015616,2]
[331168367,1720115457648,-591.53267083,0.00015616,2]
[331168368,1720115457656,-500.0,0.00015616,2]
[331168369,1720115457665,-674.89,0.00015616,2]
[331168370,1720115457674,-162.46953,0.00015616,2]
[331168371,1720115457683,-508.49,0.00015616,2]
[331168372,1720115457692,-500.0,0.00015616,2]
[331168373,1720115457701,-7130.41,0.00015616,2]
[331168374,1720115457710,-500.0,0.00015616,2]
[331168375,1720115457719,-500.0,0.00015616,2]
[331168376,1720115457739,-500.0,0.00015616,2]
[331168377,1720115457755,-3753.72,0.00015616,2]
[331168378,1720115457764,-479.09625822,0.00015616,2]
[331168379,1720115457782,-89.30374178,0.00015616,2]
[331168380,1720115457791,-605.46,0.00015616,2]
[331168381,1720115457883,-674.63029286,0.00015616,2]
[331168382,1720115457895,-108.25970714,0.00015616,2]
[331168383,1720115457904,-1464.32,0.00015616,2]
[331168384,1720115457913,-151.0,0.00015616,2]
[331168385,1720115457923,-500.0,0.00015616,2]
[331168386,1720115457936,-151.0,0.00015616,2]
[331168387,1720115457945,-164.724459,0.00015616,2]
[331168388,1720115457954,-151.376653,0.00015616,2]
[331168389,1720115457963,-500.0,0.00015616,2]
[331168390,1720115457972,-1065.15,0.00015616,2]
[331168391,1720115457981,-151.0,0.00015616,2]
[331168392,1720115457992,-1231.46,0.00015616,2]
[331168393,1720115458002,-500.0,0.00015616,2]
[331168394,1720115458010,-667.85,0.00015616,2]
[331168395,1720115458020,-151.0,0.00015616,2]
[331168396,1720115458030,-151.0,0.00015616,2]
[331168397,1720115458039,-500.0,0.00015616,2]
[331168398,1720115458048,-151.0,0.00015616,2]
[331168399,1720115458057,-748.16,0.00015616,2]
[331168400,1720115458067,-691.97,0.00015616,2]
[331168401,1720115458076,-500.0,0.00015616,2]
[331168402,1720115458085,-500.0,0.00015616,2]
[331168403,1720115458094,-628.15,0.00015616,2]
[331168404,1720115458104,-667.24,0.00015616,2]
[331168405,1720115458113,-749.4,0.00015616,2]
[331168406,1720115458122,-500.0,0.00015616,2]
[331168407,1720115458131,-500.0,0.00015616,2]
[331168408,1720115458140,-738.33,0.00015616,2]
[331168409,1720115458150,-8409.09,0.00015616,2]
[331168410,1720115458160,-574.27,0.00015616,2]
[331168411,1720115458169,-500.0,0.00015616,2]
[331168412,1720115458178,-500.0,0.00015616,2]
[331168413,1720115458187,-500.0,0.00015616,2]
[331168414,1720115458196,-500.0,0.00015616,2]
[331168415,1720115458206,-947.52,0.00015616,2]
[331168416,1720115458216,-500.0,0.00015616,2]
[331168417,1720115458234,-500.0,0.00015616,2]
[331168418,1720115458243,-500.0,0.00015616,2]
[331168419,1720115458252,-574.78,0.00015616,2]
[331168420,1720115458262,-500.0,0.00015616,2]
[331168421,1720115458271,-500.0,0.00015616,2]
[331168422,1720115458281,-942.95716574,0.00015616,2]
[331168423,1720115458295,-6.44283426,0.00015616,2]
[331168424,1720115458305,-500.0,0.00015616,2]
[331168425,1720115458315,-500.0,0.00015616,2]
[331168426,1720115458325,-500.0,0.00015616,2]
[331168427,1720115458335,-521.58,0.00015616,2]
[331168428,1720115458344,-2365.89,0.00015616,2]
[331168429,1720115458354,-500.0,0.00015616,2]
[331168430,1720115458364,-2946.08,0.00015616,2]
[331168431,1720115458374,-500.0,0.00015616,2]
[331168432,1720115458384,-922.68,0.00015616,2]
[331168433,1720115458393,-500.0,0.00015616,2]
[331168434,1720115458403,-347.20280011,0.00015616,2]
[331168435,1720115458415,-499.78027732,0.00015616,2]
[331168436,1720115516837,208.7303948,9.999e-05,2]
[331168437,1720115591231,3923.7601795,9.999e-05,2]
[331168438,1720115607760,840.24573238,9.999e-05,2]
[331168439,1720115869073,523.5184986,9.999e-05,2]
[331168440,1720115967101,523.5184986,9.999e-05,2]
[331168441,1720116009058,933.34700406,9.999e-05,2]
[331168442,1720116012627,207.76713087,9.999e-05,2]
[331168443,1720116019241,531.11088939,9.999e-05,2]
[331168444,1720116042061,410.75,0.00010959,2]
[331168445,1720116054439,242.12782375,9.999e-05,2]
[331168447,1720116070669,179.81564254,9.999e-05,2]
[331168448,1720116071078,230.25852388,9.999e-05,2]
[331168449,1720116083333,204.11,0.00010959,2]
[331168450,1720116094107,340.19,0.00010959,2]
[331168451,1720116104639,425.24,0.00010959,2]
[331168452,1720116115152,472.49,0.00010959,2]
[331168453,1720116125719,492.17,0.00010959,2]
[331168454,1720116128857,208.98551847,9.999e-05,2]
[331168455,1720116134960,318.0694556,9.999e-05,2]
[331168456,1720116136497,492.18,0.00010959,2]
[331168457,1720116147061,478.5,0.00010959,2]
[331168458,1720116152107,723.95900882,9.999e-05,2]
[331168459,1720116157626,455.72,0.00010959,2]
[331168460,1720116168186,427.24,0.00010959,2]
[331168461,1720116178835,395.59,0.00010959,2]
[331168462,1720116182654,179.35059946,9.999e-05,2]
[331168463,1720116199800,692.28,0.00010959,2]
[331168464,1720116211157,412.08,0.00010959,2]
[331168465,1720116232487,343.4,0.00010959,2]
[331168466,1720116242996,286.16,0.00010959,2]
[331168467,1720116243763,517.68163433,9.999e-05,2]
[331168468,1720116253511,238.47,0.00010959,2]
[331168469,1720116253582,402.7993587,9.999e-05,2]
[331168470,1720116256344,156.00466799,9.999e-05,2]
[331168471,1720116257909,244.97894054,9.999e-05,2]
[331168473,1720116264018,238.47,0.00010959,2]
[331168474,1720116264209,164.53895357,9.999e-05,2]
[331168475,1720116271935,842.54666328,9.999e-05,2]
[331168476,1720116274822,158.98,0.00010959,2]
[331168477,1720116277138,208.37564863,9.999e-05,2]
[331168478,1720116281445,172.67834276,9.999e-05,2]
[331168479,1720116283498,184.09364415,9.999e-05,2]
[331168480,1720116285387,794.92,0.00010959,2]
[331168481,1720116285862,155.13139377,9.999e-05,2]
[331168482,1720116289103,724.44962889,9.999e-05,2]
[331168483,1720116291823,164.83119203,9.999e-05,2]
[331168484,1720116298276,214.18723696,9.999e-05,2]
[331168485,1720116298967,154.91476285,9.999e-05,2]
[331168486,1720116302122,181.86165791,9.999e-05,2]
[331168487,1720116302387,308.12123967,9.999e-05,2]
[331168488,1720116302856,155.3707062,9.999e-05,2]
[331168489,1720116303043,155.05100126,9.999e-05,2]
[331168490,1720116303637,155.67984992,9.999e-05,2]
[331168492,1720116304466,154.88383712,9.999e-05,2]
[331168493,1720116308326,309.6439095,9.999e-05,2]
[331168494,1720116309842,208.98551847,9.999e-05,2]
[331168495,1720116311620,519.98573171,9.999e-05,2]
[331168496,1720116315210,155.38523359,9.999e-05,2]
[331168497,1720116316306,194.98259822,9.999e-05,2]
[331168498,1720116317139,184.43879915,9.999e-05,2]
[331168499,1720116359765,516.96143151,9.999e-05,2]
[331168500,1720116406260,209.56639127,9.999e-05,2]
[331168501,1720116412975,155.3980003,9.999e-05,2]
[331168502,1720116418021,285.68341675,9.999e-05,2]
[331168503,1720116418952,661.83318838,9.999e-05,2]
[331168504,1720116460167,412.3,0.00010959,2]
[331168506,1720116468958,208.78179078,9.999e-05,2]
[331168509,1720116483570,402.27259055,9.999e-05,2]
[331168510,1720116506759,166.175753,0.00023562,120]
[331168512,1720116517969,661.83318838,9.999e-05,2]
[331168526,1720116574564,264.4312312,9.999e-05,2]
[331168527,1720116606862,309.7057795,9.999e-05,2]
[331168528,1720116624468,659.71860151,9.999e-05,2]
[331168637,1720116638081,-248.36537611,0.0001212,2]
[331168639,1720116638091,-195.57704168,0.0001212,2]
[331168641,1720116638100,-261.44925728,0.0001226,2]
[331168700,1720116638743,-38.55074272,0.0001226,2]
[331168701,1720116638753,-543.86679567,0.00012261,2]
[331168702,1720116638764,-10934.77274788,0.00012261,2]
[331168703,1720116638784,-3125.46437078,0.00012261,2]
[331168704,1720116638800,-1375.0619425,0.00012261,2]
[331168705,1720116638814,-8920.83414317,0.00012261,2]
[331168706,1720116638824,-2718.05425513,0.00013498,2]
[331168707,1720116638834,-3612.40868586,0.00013498,2]
[331168708,1720116638844,-725.55474896,0.00013598,2]
[331168709,1720116638854,-2000.0,0.00013598,2]
[331168710,1720116638864,-58370.7026455,0.00013688,2]
[331168711,1720116638874,-500.0,0.00013698,2]
[331168712,1720116638884,-500.0,0.00013698,2]
[331168713,1720116638893,-500.0,0.00013698,2]
[331168714,1720116638903,-500.0,0.00013698,2]
[331168715,1720116638913,-500.0,0.00013698,2]
[331168716,1720116638922,-579.48305805,0.00013698,2]
[331168717,1720116638932,-234.97903138,0.00013698,2]
[331168718,1720116638942,-265.0,0.00013698,2]
[331168719,1720116638952,-500.0,0.00013698,2]
[331168720,1720116638962,-500.75397033,0.00013698,2]
[331168721,1720116639149,-500.0,0.00013698,2]
[331168722,1720116639159,-500.0,0.00013698,2]
[331168723,1720116639169,-500.0,0.00013698,2]
[331168724,1720116639183,-500.0,0.00013698,2]
[331168725,1720116639193,-500.0,0.00013698,2]
[331168726,1720116639203,-505.74690447,0.00013698,2]
[331168727,1720116639212,-500.0,0.00013698,2]
[331168728,1720116639223,-500.0,0.00013698,2]
[331168729,1720116639234,-500.0,0.00013698,2]
[331168730,1720116639243,-511.42327168,0.00013698,2]
[331168731,1720116639254,-734.56,0.00013698,2]
[331168732,1720116639264,-500.0,0.00013698,2]
[331168733,1720116639276,-509.64652439,0.00013698,2]
[331168734,1720116639287,-500.0,0.00013698,2]
[331168735,1720116639297,-500.0,0.00013698,2]
[331168736,1720116639307,-500.0,0.00013698,2]
[331168737,1720116639317,-500.0,0.00013698,2]
[331168738,1720116639327,-500.0,0.00013698,2]
[331168739,1720116639337,-500.0,0.00013698,2]
[331168740,1720116639347,-500.0,0.00013698,2]
[331168741,1720116639358,-500.0,0.00013698,2]
[331168742,1720116639368,-500.0,0.00013698,2]
[331168743,1720116639379,-500.0,0.00013698,2]
[331168744,1720116639390,-500.0,0.00013698,2]
[331168745,1720116639400,-500.0,0.00013698,2]
[331168746,1720116639411,-500.0,0.00013698,2]
[331168747,1720116639421,-500.0,0.00013698,2]
[331168748,1720116639431,-500.0,0.00013698,2]
[331168749,1720116639442,-500.0,0.00013698,2]
[331168750,1720116639452,-500.0,0.00013698,2]
[331168751,1720116639461,-500.0,0.00013698,2]
[331168752,1720116639471,-502.85390843,0.00013698,2]
[331168753,1720116639482,-500.0,0.00013698,2]
[331168754,1720116639492,-500.0,0.00013698,2]
[331168755,1720116639502,-500.0,0.00013698,2]
[331168756,1720116639512,-500.0,0.00013698,2]
[331168757,1720116639522,-500.0,0.00013698,2]
[331168758,1720116639532,-500.0,0.00013698,2]
[331168759,1720116639542,-500.0,0.00013698,2]
[331168760,1720116639552,-321.39129053,0.00013698,2]
[331168761,1720116639562,-501.36868169,0.00013698,2]
[331168762,1720116639574,-500.0,0.00013698,2]
[331168763,1720116639584,-500.0,0.00013698,2]
[331168764,1720116639594,-502.87927864,0.00013698,2]
[331168765,1720116639603,-500.0,0.00013698,2]
[331168766,1720116639613,-500.0,0.00013698,2]
[331168767,1720116639622,-500.0,0.00013698,2]
[331168768,1720116639631,-500.0,0.00013698,2]
[331168769,1720116639641,-500.0,0.00013698,2]
[331168770,1720116639650,-193.48871249,0.00013698,2]
[331168771,1720116639660,-500.0,0.00013698,2]
[331168772,1720116639669,-500.0,0.00013698,2]
[331168773,1720116639679,-508.73362254,0.00013698,2]
[331168774,1720116639690,-500.0,0.00013698,2]
[331168775,1720116639700,-502.34145915,0.00013698,2]
[331168776,1720116639709,-500.0,0.00013698,2]
[331168777,1720116639718,-500.0,0.00013698,2]
[331168778,1720116639728,-734.79,0.00013698,2]
[331168779,1720116639739,-500.0,0.00013698,2]
[331168780,1720116639748,-500.0,0.00013698,2]
[331168781,1720116639758,-500.0,0.00013698,2]
[331168782,1720116639768,-500.0,0.00013698,2]
[331168783,1720116639778,-500.0,0.00013698,2]
[331168784,1720116639788,-500.0,0.00013698,2]
[331168785,1720116639797,-500.0,0.00013698,2]
[331168786,1720116639806,-500.0,0.00013698,2]
[331168787,1720116639816,-500.0,0.00013698,2]
[331168788,1720116639825,-500.0,0.00013698,2]
[331168789,1720116639835,-500.0,0.00013698,2]
[331168790,1720116639844,-500.0,0.00013698,2]
[331168791,1720116639854,-500.0,0.00013698,2]
[331168792,1720116639863,-500.0,0.00013698,2]
[331168793,1720116639873,-500.0,0.00013698,2]
[331168794,1720116639882,-500.0,0.00013698,2]
[331168795,1720116639891,-501.59215236,0.00013698,2]
[331168796,1720116639901,-500.0,0.00013698,2]
[331168797,1720116639910,-500.0,0.00013698,2]
[331168798,1720116639920,-500.0,0.00013698,2]
[331168799,1720116639929,-514.69,0.00013698,2]
[331168800,1720116639938,-500.0,0.00013698,2]
[331168802,1720116639948,-500.0,0.00013698,2]
[331168803,1720116639958,-500.0,0.00013698,2]
[331168805,1720116639968,-500.0,0.00013698,2]
[331168806,1720116639977,-500.0,0.00013698,2]
[331168807,1720116639986,-554.25167022,0.00013698,2]
[331168808,1720116639996,-500.0,0.00013698,2]
[331168809,1720116640005,-500.0,0.00013698,2]
[331168810,1720116640014,-500.0,0.00013698,2]
[331168811,1720116640023,-500.0,0.00013698,2]
[331168812,1720116640033,-614.6812206,0.00013698,2]
[331168813,1720116640042,-500.0,0.00013698,2]
[331168814,1720116640052,-577.75,0.00013698,2]
[331168815,1720116640061,-500.0,0.00013698,2]
[331168816,1720116640071,-500.0,0.00013698,2]
[331168818,1720116640080,-500.0,0.00013698,2]
[331168820,1720116640090,-184.70558059,0.00013698,2]
[331168821,1720116640099,-500.0,0.00013698,2]
[331168823,1720116640108,-500.0,0.00013698,2]
[331168825,1720116640118,-500.0,0.00013698,2]
[331168827,1720116640128,-500.0,0.00013698,2]
[331168828,1720116640137,-501.43587116,0.00013698,2]
[331168829,1720116640147,-505.20988298,0.00013698,2]
[331168830,1720116640156,-500.0,0.00013698,2]
[331168831,1720116640166,-500.0,0.00013698,2]
[331168832,1720116640176,-500.0,0.00013698,2]
[331168833,1720116640190,-500.0,0.00013698,2]
[331168834,1720116640200,-500.0,0.00013698,2]
[331168836,1720116640209,-500.0,0.00013698,2]
[331168837,1720116640219,-500.0,0.00013698,2]
[331168839,1720116640230,-500.0,0.00013698,2]
[331168841,1720116640240,-500.0,0.00013698,2]
[331168843,1720116640249,-500.0,0.00013698,2]
[331168845,1720116640258,-500.0,0.00013698,2]
[331168846,1720116640268,-500.0,0.00013698,2]
[331168848,1720116640280,-1209.33,0.00013698,2]
[331168850,1720116640290,-500.0,0.00013698,2]
[331168852,1720116640299,-500.0,0.00013698,2]
[331168854,1720116640308,-500.0,0.00013698,2]
[331168855,1720116640318,-500.0,0.00013698,2]
[331168857,1720116640327,-488.30154387,0.00013698,2]
[331168859,1720116640336,-500.0,0.00013698,2]
[331168861,1720116640345,-803.35,0.00013698,2]
[331168863,1720116640354,-503.90678491,0.00013698,2]
[331168864,1720116640364,-500.0,0.00013698,2]
[331168865,1720116640373,-500.0,0.00013698,2]
[331168866,1720116640383,-500.0,0.00013698,2]
[331168867,1720116640392,-567.38,0.00013698,2]
[331168868,1720116640401,-500.0,0.00013698,2]
[331168869,1720116640411,-500.0,0.00013698,2]
[331168870,1720116640420,-500.0,0.00013698,2]
[331168871,1720116640429,-500.0,0.00013698,2]
[331168872,1720116640439,-500.0,0.00013698,2]
[331168873,1720116640448,-500.0,0.00013698,2]
[331168874,1720116640458,-505.28156161,0.00013698,2]
[331168875,1720116640467,-501.08921587,0.00013698,2]
[331168876,1720116640478,-500.0,0.00013698,2]
[331168877,1720116640487,-500.0,0.00013698,2]
[331168878,1720116640497,-500.0,0.00013698,2]
[331168879,1720116640506,-500.0,0.00013698,2]
[331168880,1720116640516,-505.36214824,0.00013698,2]
[331168881,1720116640526,-500.0,0.00013698,2]
[331168882,1720116640535,-500.0,0.00013698,2]
[331168883,1720116640545,-500.0,0.00013698,2]
[331168884,1720116640555,-542.4081079,0.00013698,2]
[331168885,1720116640564,-1440.93,0.00013698,2]
[331168886,1720116640574,-500.0,0.00013698,2]
[331168887,1720116640583,-500.0,0.00013698,2]
[331168888,1720116640593,-615.69,0.00013698,2]
[331168889,1720116640602,-528.33980179,0.00013698,2]
[331168890,1720116640611,-500.0,0.00013698,2]
[331168891,1720116640622,-500.0,0.00013698,2]
[331168892,1720116640632,-500.0,0.00013698,2]
[331168893,1720116640641,-500.0,0.00013698,2]
[331168894,1720116640650,-514.66498992,0.00013698,2]
[331168895,1720116640659,-500.0,0.00013698,2]
[331168896,1720116640668,-500.0,0.00013698,2]
[331168897,1720116640678,-500.0,0.00013698,2]
[331168898,1720116640688,-503.65680828,0.00013698,2]
[331168899,1720116640697,-619.73333682,0.00013698,2]
[331168900,1720116640706,-500.0,0.00013698,2]
[331168901,1720116640715,-500.0,0.00013698,2]
[331168902,1720116640725,-500.0,0.00013698,2]
[331168903,1720116640734,-500.0,0.00013698,2]
[331168904,1720116640743,-500.0,0.00013698,2]
[331168905,1720116640752,-503.07644864,0.00013698,2]
[331168906,1720116640762,-500.0,0.00013698,2]
[331168907,1720116640771,-500.0,0.00013698,2]
[331168908,1720116640781,-500.0,0.00013698,2]
[331168909,1720116640790,-502.12413421,0.00013698,2]
[331168910,1720116640799,-500.0,0.00013698,2]
[331168911,1720116640809,-500.0,0.00013698,2]
[331168912,1720116640819,-500.0,0.00013698,2]
[331168913,1720116640829,-500.0,0.00013698,2]
[331168914,1720116640839,-563.20916023,0.00013698,2]
[331168915,1720116640848,-500.0,0.00013698,2]
[331168916,1720116640857,-500.0,0.00013698,2]
[331168917,1720116640867,-500.0,0.00013698,2]
[331168918,1720116640876,-500.0,0.00013698,2]
[331168919,1720116640885,-500.0,0.00013698,2]
[331168920,1720116640895,-500.0,0.00013698,2]
[331168921,1720116640904,-500.0,0.00013698,2]
[331168922,1720116640914,-500.0,0.00013698,2]
[331168923,1720116640933,-500.0,0.00013698,2]
[331168924,1720116640944,-500.0,0.00013698,2]
[331168925,1720116640954,-160.42457383,0.00013698,2]
[331168926,1720116640964,-500.0,0.00013698,2]
[331168927,1720116640975,-500.0,0.00013698,2]
[331168928,1720116640985,-500.0,0.00013698,2]
[331168929,1720116640995,-500.0,0.00013698,2]
[331168930,1720116641006,-505.16206578,0.00013698,2]
[331168931,1720116641015,-504.35788494,0.00013698,2]
[331168932,1720116641026,-500.0,0.00013698,2]
[331168933,1720116641036,-6635.75,0.00013698,2]
[331168934,1720116641046,-502.40244211,0.00013698,2]
[331168935,1720116641056,-500.0,0.00013698,2]
[331168936,1720116641066,-504.01875086,0.00013698,2]
[331168937,1720116641076,-502.67570938,0.00013698,2]
[331168938,1720116641087,-500.0,0.00013698,2]
[331168939,1720116641097,-500.0,0.00013698,2]
[331168940,1720116641107,-924.74,0.00013698,2]
[331168941,1720116641117,-500.0,0.00013698,2]
[331168942,1720116641127,-500.0,0.00013698,2]
[331168943,1720116641139,-500.0,0.00013698,2]
[331168944,1720116641149,-500.0,0.00013698,2]
[331168945,1720116641159,-500.0,0.00013698,2]
[331168946,1720116641168,-501.45431292,0.00013698,2]
[331168947,1720116641179,-500.0,0.00013698,2]
[331168948,1720116641189,-1164.31,0.00013698,2]
[331168949,1720116641203,-500.0,0.00013698,2]
[331168950,1720116641213,-500.0,0.00013698,2]
[331168951,1720116641223,-501.44905527,0.00013698,2]
[331168952,1720116641235,-500.0,0.00013698,2]
[331168953,1720116641245,-500.0,0.00013698,2]
[331168954,1720116641255,-500.0,0.00013698,2]
[331168955,1720116641266,-500.0,0.00013698,2]
[331168956,1720116641277,-500.0,0.00013698,2]
[331168957,1720116641287,-516.80713987,0.00013698,2]
[331168958,1720116641297,-289.79248135,0.00013698,2]
[331168959,1720116641308,-587.9,0.00013698,2]
[331168960,1720116641318,-500.0,0.00013698,2]
[331168961,1720116641328,-3407.86,0.00013698,2]
[331168962,1720116641337,-500.0,0.00013698,2]
[331168963,1720116641347,-504.55048619,0.00013698,2]
[331168964,1720116641357,-500.0,0.00013698,2]
[331168965,1720116641366,-500.0,0.00013698,2]
[331168966,1720116641376,-500.0,0.00013698,2]
[331168967,1720116641385,-500.0,0.00013698,2]
[331168968,1720116641395,-500.0,0.00013698,2]
[331168969,1720116641405,-500.0,0.00013698,2]
[331168970,1720116641415,-503.56967856,0.00013698,2]
[331168971,1720116641424,-500.0,0.00013698,2]
[331168972,1720116641434,-500.0,0.00013698,2]
[331168973,1720116641444,-500.0,0.00013698,2]
[331168974,1720116641454,-511.32,0.00013698,2]
[331168975,1720116641464,-688.24,0.00013698,2]
[331168976,1720116641473,-500.0,0.00013698,2]
[331168977,1720116641484,-500.0,0.00013698,2]
[331168978,1720116641493,-654.16,0.00013698,2]
[331168979,1720116641502,-429.45036892,0.00013698,2]
[331168980,1720116641512,-500.0,0.00013698,2]
[331168981,1720116641523,-500.0,0.00013698,2]
[331168982,1720116641534,-500.0,0.00013698,2]
[331168983,1720116641543,-500.0,0.00013698,2]
[331168984,1720116641553,-500.0,0.00013698,2]
[331168985,1720116641563,-509.18546954,0.00013698,2]
[331168986,1720116641572,-500.0,0.00013698,2]
[331168987,1720116641582,-500.0,0.00013698,2]
[331168988,1720116641592,-500.0,0.00013698,2]
[331168989,1720116641602,-500.0,0.00013698,2]
[331168990,1720116641611,-500.0,0.00013698,2]
[331168991,1720116641620,-500.0,0.00013698,2]
[331168992,1720116641630,-500.0,0.00013698,2]
[331168993,1720116641640,-500.0,0.00013698,2]
[331168994,1720116641649,-500.0,0.00013698,2]
[331168995,1720116641659,-524.4,0.00013698,2]
[331168996,1720116641669,-500.0,0.00013698,2]
[331168997,1720116641679,-500.0,0.00013698,2]
[331168998,1720116641689,-591.25780219,0.00013698,2]
[331168999,1720116641828,-500.0,0.00013698,2]
[331169000,1720116641838,-500.0,0.00013698,2]
[331169001,1720116641847,-500.0,0.00013698,2]
[331169002,1720116641856,-500.0,0.00013698,2]
[331169003,1720116641865,-500.0,0.00013698,2]
[331169004,1720116641874,-500.0,0.00013698,2]
[331169005,1720116641884,-500.0,0.00013698,2]
[331169006,1720116641893,-500.0,0.00013698,2]
[331169007,1720116641902,-500.0,0.00013698,2]
[331169008,1720116641911,-507.99464714,0.00013698,2]
[331169009,1720116641920,-500.0,0.00013698,2]
[331169010,1720116641930,-500.0,0.00013698,2]
[331169011,1720116641940,-500.0,0.00013698,2]
[331169012,1720116641949,-514.62856225,0.00013698,2]
[331169013,1720116641959,-500.0,0.00013698,2]
[331169014,1720116641969,-500.0,0.00013698,2]
[331169015,1720116641981,-500.0,0.00013698,2]
[331169016,1720116641991,-500.0,0.00013698,2]
[331169017,1720116642001,-683.65,0.00013698,2]
[331169018,1720116642010,-500.0,0.00013698,2]
[331169019,1720116642020,-500.0,0.00013698,2]
[331169020,1720116642030,-500.0,0.00013698,2]